[Event "Early-Titled-Tuesday-Blitz-October-24-2023"]
[Site "Chess.com"]
[Date "2023.10.24"]
[Round "1"]
[White "AryanTari"]
[Black "Predator0608"]
[Result "1-0"]
[WhiteElo "2946"]
[BlackElo "2500"]
[TimeControl "180+1"]
[EndTime "8:04:47 PDT"]
[Termination "AryanTari won by resignation"]

1. d4 {[%clk 0:03:00.9]} 1... d5 {[%clk 0:02:58]} 2. Nf3 {[%clk 0:03:00.9]} 2...
Nf6 {[%clk 0:02:57.7]} 3. g3 {[%clk 0:03:01.1]} 3... Bf5 {[%clk 0:02:52.1]} 4.
c4 {[%clk 0:02:58.6]} 4... e6 {[%clk 0:02:51.5]} 5. Nc3 {[%clk 0:02:57.9]} 5...
Be7 {[%clk 0:02:51]} 6. Qb3 {[%clk 0:02:54]} 6... Nc6 {[%clk 0:02:41.2]} 7. Bg2
{[%clk 0:02:45.1]} 7... dxc4 {[%clk 0:02:19.3]} 8. Qxc4 {[%clk 0:02:41.6]} 8...
O-O {[%clk 0:02:18.1]} 9. O-O {[%clk 0:02:40.9]} 9... Ne4 {[%clk 0:02:05.7]} 10.
Rd1 {[%clk 0:02:34.9]} 10... Nxc3 {[%clk 0:02:02.2]} 11. bxc3 {[%clk 0:02:32.8]}
11... Be4 {[%clk 0:02:01.9]} 12. Qb3 {[%clk 0:02:28.3]} 12... Bd5 {[%clk
0:01:55.7]} 13. Qc2 {[%clk 0:02:27.6]} 13... f5 {[%clk 0:01:43.9]} 14. h4 {[%clk
0:02:24.2]} 14... Bf6 {[%clk 0:01:28.6]} 15. Bf4 {[%clk 0:02:19.1]} 15... Na5
{[%clk 0:01:15]} 16. Re1 {[%clk 0:01:57.1]} 16... Nc4 {[%clk 0:01:10]} 17. e4
{[%clk 0:01:57]} 17... Bxe4 {[%clk 0:01:07.1]} 18. Rxe4 {[%clk 0:01:57.5]} 18...
fxe4 {[%clk 0:01:08]} 19. Qxe4 {[%clk 0:01:58.2]} 19... Nd6 {[%clk 0:01:03.6]}
20. Qxe6+ {[%clk 0:01:56.8]} 20... Kh8 {[%clk 0:01:04]} 21. Ne5 {[%clk
0:01:51.9]} 21... Re8 {[%clk 0:00:55.5]} 22. Qxd6 {[%clk 0:01:39]} 22... Qxd6
{[%clk 0:00:42.4]} 23. Nf7+ {[%clk 0:01:39.1]} 23... Kg8 {[%clk 0:00:43.1]} 24.
Nxd6 {[%clk 0:01:39.5]} 24... cxd6 {[%clk 0:00:43.9]} 25. Bxb7 {[%clk
0:01:39.9]} 25... Rac8 {[%clk 0:00:44.5]} 26. Bxc8 {[%clk 0:01:39.4]} 1-0

[Event "Early-Titled-Tuesday-Blitz-October-24-2023"]
[Site "Chess.com"]
[Date "2023.10.24"]
[Round "1"]
[White "Alexei_Gubajdullin"]
[Black "tomesao"]
[Result "0-1"]
[WhiteElo "2747"]
[BlackElo "2429"]
[TimeControl "180+1"]
[EndTime "8:04:48 PDT"]
[Termination "tomesao won on time"]

1. d4 {[%clk 0:03:00.4]} 1... Nf6 {[%clk 0:02:59.9]} 2. Nf3 {[%clk 0:03:00.7]}
2... d5 {[%clk 0:02:58.7]} 3. Bf4 {[%clk 0:03:01.3]} 3... e6 {[%clk 0:02:55.9]}
4. e3 {[%clk 0:03:01.6]} 4... c5 {[%clk 0:02:56]} 5. Nbd2 {[%clk 0:03:01.7]}
5... Qb6 {[%clk 0:02:50.6]} 6. Rb1 {[%clk 0:02:56.5]} 6... Nc6 {[%clk
0:02:50.1]} 7. c3 {[%clk 0:02:52.8]} 7... cxd4 {[%clk 0:02:50.1]} 8. exd4 {[%clk
0:02:52.5]} 8... Bd7 {[%clk 0:02:50.1]} 9. Bd3 {[%clk 0:02:52]} 9... Be7 {[%clk
0:02:48.8]} 10. O-O {[%clk 0:02:51.8]} 10... Rc8 {[%clk 0:02:48.5]} 11. Ne5
{[%clk 0:02:51.5]} 11... Nxe5 {[%clk 0:02:36.5]} 12. dxe5 {[%clk 0:02:51.3]}
12... Ng8 {[%clk 0:02:35.5]} 13. Qg4 {[%clk 0:02:50.4]} 13... g6 {[%clk
0:02:34.8]} 14. h4 {[%clk 0:02:45.3]} 14... h5 {[%clk 0:02:33.9]} 15. Qg3 {[%clk
0:02:45.4]} 15... Nh6 {[%clk 0:02:32.9]} 16. Nf3 {[%clk 0:02:41.7]} 16... Nf5
{[%clk 0:02:25]} 17. Bxf5 {[%clk 0:02:41.1]} 17... exf5 {[%clk 0:02:25.9]} 18.
Bg5 {[%clk 0:02:41.4]} 18... Bc5 {[%clk 0:02:03.4]} 19. Bf6 {[%clk 0:02:33.5]}
19... Rg8 {[%clk 0:02:03.6]} 0-1

[Event "Early-Titled-Tuesday-Blitz-October-24-2023"]
[Site "Chess.com"]
[Date "2023.10.24"]
[Round "1"]
[White "Keeper0416"]
[Black "LuisFSiles"]
[Result "1-0"]
[WhiteElo "2589"]
[BlackElo "2261"]
[TimeControl "180+1"]
[EndTime "8:04:52 PDT"]
[Termination "Keeper0416 won by checkmate"]

1. d4 {[%clk 0:02:59.5]} 1... Nf6 {[%clk 0:02:59.5]} 2. c4 {[%clk 0:02:59.6]}
2... g6 {[%clk 0:02:59.3]} 3. Nc3 {[%clk 0:02:59.4]} 3... Bg7 {[%clk 0:02:59.2]}
4. e4 {[%clk 0:02:59.8]} 4... d6 {[%clk 0:02:59.3]} 5. Nf3 {[%clk 0:03:00.2]}
5... O-O {[%clk 0:02:59.4]} 6. h3 {[%clk 0:03:00.5]} 6... c5 {[%clk 0:02:58.9]}
7. d5 {[%clk 0:02:57.5]} 7... e6 {[%clk 0:02:57.8]} 8. Bd3 {[%clk 0:02:57.5]}
8... Na6 {[%clk 0:02:51.7]} 9. O-O {[%clk 0:02:56.8]} 9... Nc7 {[%clk
0:02:47.2]} 10. Re1 {[%clk 0:02:54.7]} 10... exd5 {[%clk 0:02:41.7]} 11. cxd5
{[%clk 0:02:52.9]} 11... a6 {[%clk 0:02:38.7]} 12. a4 {[%clk 0:02:53]} 12... Rb8
{[%clk 0:02:39.3]} 13. a5 {[%clk 0:02:50.4]} 13... b5 {[%clk 0:02:37.8]} 14.
axb6 {[%clk 0:02:51.3]} 14... Rxb6 {[%clk 0:02:37.7]} 15. Nd2 {[%clk 0:02:51.8]}
15... Nb5 {[%clk 0:02:35.1]} 16. Nc4 {[%clk 0:02:13.9]} 16... Nxc3 {[%clk
0:02:22.2]} 17. bxc3 {[%clk 0:02:14.8]} 17... Rb8 {[%clk 0:02:19.3]} 18. Bf4
{[%clk 0:02:14.1]} 18... Ne8 {[%clk 0:02:17.9]} 19. e5 {[%clk 0:02:10.9]} 19...
dxe5 {[%clk 0:02:14.1]} 20. Nxe5 {[%clk 0:02:11.8]} 20... Qxd5 {[%clk 0:02:10]}
21. Bc4 {[%clk 0:01:49.6]} 21... Qxd1 {[%clk 0:02:06.8]} 22. Raxd1 {[%clk
0:01:50.5]} 22... Be6 {[%clk 0:02:01.6]} 23. Bxe6 {[%clk 0:01:43.4]} 23... fxe6
{[%clk 0:02:01.3]} 24. Nd7 {[%clk 0:01:44.3]} 24... Bxc3 {[%clk 0:01:43.4]} 25.
Nxf8 {[%clk 0:01:40.1]} 25... Rb4 {[%clk 0:01:36]} 26. Nxe6 {[%clk 0:01:36.6]}
26... Bxe1 {[%clk 0:01:34.2]} 27. Rxe1 {[%clk 0:01:37.5]} 27... Nf6 {[%clk
0:01:27]} 28. Be3 {[%clk 0:01:35.6]} 28... c4 {[%clk 0:01:26.1]} 29. Bd4 {[%clk
0:01:34.3]} 29... Nd5 {[%clk 0:01:24.3]} 30. Ng5 {[%clk 0:01:33.5]} 30... Rb8
{[%clk 0:01:18]} 31. Re5 {[%clk 0:01:29.7]} 31... c3 {[%clk 0:01:17]} 32. Rxd5
{[%clk 0:01:27.1]} 32... c2 {[%clk 0:01:17.2]} 33. Be3 {[%clk 0:01:27.7]} 33...
Rb1+ {[%clk 0:01:16.3]} 34. Kh2 {[%clk 0:01:27.7]} 34... c1=Q {[%clk 0:01:17.2]}
35. Bxc1 {[%clk 0:01:28.3]} 35... Rxc1 {[%clk 0:01:17.9]} 36. Rd8+ {[%clk
0:01:28.7]} 36... Kg7 {[%clk 0:01:17.6]} 37. f4 {[%clk 0:01:29]} 37... h6 {[%clk
0:01:17.3]} 38. Rd7+ {[%clk 0:01:29.4]} 38... Kf6 {[%clk 0:01:17.1]} 39. Rf7#
{[%clk 0:01:29.2]} 1-0

[Event "Early-Titled-Tuesday-Blitz-October-24-2023"]
[Site "Chess.com"]
[Date "2023.10.24"]
[Round "1"]
[White "Noki102"]
[Black "carokannlover213"]
[Result "0-1"]
[WhiteElo "2395"]
[BlackElo "2721"]
[TimeControl "180+1"]
[EndTime "8:05:06 PDT"]
[Termination "carokannlover213 won by resignation"]

1. d4 {[%clk 0:02:59.4]} 1... g6 {[%clk 0:02:59.2]} 2. Nc3 {[%clk 0:02:54]} 2...
Bg7 {[%clk 0:02:59.4]} 3. e4 {[%clk 0:02:54.2]} 3... c6 {[%clk 0:02:59.1]} 4. h4
{[%clk 0:02:53.5]} 4... d5 {[%clk 0:02:58]} 5. e5 {[%clk 0:02:52]} 5... h5
{[%clk 0:02:56.8]} 6. Nh3 {[%clk 0:02:49.7]} 6... Bg4 {[%clk 0:02:53.7]} 7. Be2
{[%clk 0:02:48.9]} 7... Bxe2 {[%clk 0:02:53.5]} 8. Nxe2 {[%clk 0:02:48.7]} 8...
e6 {[%clk 0:02:53.6]} 9. Ng5 {[%clk 0:02:42.1]} 9... Nd7 {[%clk 0:02:53.1]} 10.
Nf4 {[%clk 0:02:40.2]} 10... Qa5+ {[%clk 0:02:38.9]} 11. Bd2 {[%clk 0:02:36.2]}
11... Qb6 {[%clk 0:02:39.4]} 12. Qf3 {[%clk 0:01:50.9]} 12... Nh6 {[%clk
0:02:10.7]} 13. Nfxe6 {[%clk 0:00:54.5]} 13... fxe6 {[%clk 0:02:00.7]} 14. Nxe6
{[%clk 0:00:55.4]} 14... Nf5 {[%clk 0:02:01]} 15. Qa3 {[%clk 0:00:53.2]} 15...
Bf8 {[%clk 0:01:54.5]} 16. Qd3 {[%clk 0:00:20.4]} 16... c5 {[%clk 0:01:38.4]}
17. dxc5 {[%clk 0:00:09.6]} 17... Qxe6 {[%clk 0:01:37.1]} 0-1

[Event "Early-Titled-Tuesday-Blitz-October-24-2023"]
[Site "Chess.com"]
[Date "2023.10.24"]
[Round "1"]
[White "suspiciumchess"]
[Black "RandomNoob04"]
[Result "0-1"]
[WhiteElo "2288"]
[BlackElo "2613"]
[TimeControl "180+1"]
[EndTime "8:05:09 PDT"]
[Termination "RandomNoob04 won by checkmate"]

1. d4 {[%clk 0:02:58.9]} 1... Nf6 {[%clk 0:02:59.6]} 2. c4 {[%clk 0:02:57.5]}
2... c5 {[%clk 0:02:59.7]} 3. d5 {[%clk 0:02:57.3]} 3... b5 {[%clk 0:02:56.5]}
4. cxb5 {[%clk 0:02:57.7]} 4... a6 {[%clk 0:02:53.8]} 5. b6 {[%clk 0:02:57]}
5... Qxb6 {[%clk 0:02:53.6]} 6. Nc3 {[%clk 0:02:57]} 6... d6 {[%clk 0:02:54.5]}
7. Nf3 {[%clk 0:02:53.7]} 7... g6 {[%clk 0:02:53.7]} 8. e4 {[%clk 0:02:53.5]}
8... Bg7 {[%clk 0:02:53.8]} 9. a4 {[%clk 0:02:53.3]} 9... O-O {[%clk 0:02:53.6]}
10. Be2 {[%clk 0:02:39]} 10... Nbd7 {[%clk 0:02:52.8]} 11. O-O {[%clk
0:02:38.2]} 11... Qc7 {[%clk 0:02:52.6]} 12. Nd2 {[%clk 0:02:34.8]} 12... Bb7
{[%clk 0:02:50.3]} 13. Nc4 {[%clk 0:02:34.6]} 13... Nb6 {[%clk 0:02:50.1]} 14.
Bf4 {[%clk 0:02:29.5]} 14... Nxc4 {[%clk 0:02:45.8]} 15. Bxc4 {[%clk 0:02:30.3]}
15... Nd7 {[%clk 0:02:42.7]} 16. Re1 {[%clk 0:02:26.9]} 16... Ne5 {[%clk
0:02:39]} 17. Bf1 {[%clk 0:02:26.6]} 17... e6 {[%clk 0:02:36.4]} 18. Bg3 {[%clk
0:02:23.7]} 18... Rfe8 {[%clk 0:02:30.2]} 19. Qd2 {[%clk 0:02:11.2]} 19... Rad8
{[%clk 0:02:21]} 20. Rad1 {[%clk 0:02:10.3]} 20... Qe7 {[%clk 0:02:08.4]} 21. f4
{[%clk 0:02:01.7]} 21... Ng4 {[%clk 0:02:05.4]} 22. h3 {[%clk 0:02:00.4]} 22...
Bd4+ {[%clk 0:02:00.1]} 23. Kh1 {[%clk 0:02:00.7]} 23... Nf6 {[%clk 0:01:59]}
24. Bh4 {[%clk 0:01:54]} 24... Qd7 {[%clk 0:01:48.4]} 25. dxe6 {[%clk
0:01:20.9]} 25... Rxe6 {[%clk 0:01:42.4]} 26. Bc4 {[%clk 0:00:54.1]} 26... Rxe4
{[%clk 0:01:32.6]} 27. Nxe4 {[%clk 0:00:47.5]} 27... Nxe4 {[%clk 0:01:33.5]} 28.
Rxe4 {[%clk 0:00:43.9]} 28... Bxe4 {[%clk 0:01:34.4]} 29. Bxd8 {[%clk
0:00:43.4]} 29... Qxh3# {[%clk 0:01:34.6]} 0-1

[Event "Early-Titled-Tuesday-Blitz-October-24-2023"]
[Site "Chess.com"]
[Date "2023.10.24"]
[Round "1"]
[White "Fonsofan"]
[Black "MarijaKuznecova"]
[Result "1-0"]
[WhiteElo "2727"]
[BlackElo "2400"]
[TimeControl "180+1"]
[EndTime "8:05:14 PDT"]
[Termination "Fonsofan won on time"]

1. c4 {[%clk 0:02:55]} 1... c5 {[%clk 0:02:59.1]} 2. Nc3 {[%clk 0:02:55.5]} 2...
Nc6 {[%clk 0:02:59.2]} 3. Nf3 {[%clk 0:02:55.9]} 3... e5 {[%clk 0:02:59.4]} 4.
g3 {[%clk 0:02:55.3]} 4... d6 {[%clk 0:02:59.4]} 5. Bg2 {[%clk 0:02:55.9]} 5...
g6 {[%clk 0:03:00]} 6. O-O {[%clk 0:02:56.4]} 6... Bg7 {[%clk 0:03:00.6]} 7. Ne1
{[%clk 0:02:56.9]} 7... Nge7 {[%clk 0:03:00.8]} 8. Nc2 {[%clk 0:02:57.5]} 8...
O-O {[%clk 0:02:59.9]} 9. Ne3 {[%clk 0:02:58.1]} 9... Be6 {[%clk 0:02:56.8]} 10.
a3 {[%clk 0:02:56.6]} 10... a5 {[%clk 0:02:52.7]} 11. Rb1 {[%clk 0:02:55.6]}
11... f5 {[%clk 0:02:49.9]} 12. d3 {[%clk 0:02:55.1]} 12... Nd4 {[%clk
0:02:30.9]} 13. b4 {[%clk 0:02:47.9]} 13... axb4 {[%clk 0:02:24]} 14. axb4
{[%clk 0:02:48.8]} 14... f4 {[%clk 0:02:05]} 15. Ned5 {[%clk 0:02:47.8]} 15...
f3 {[%clk 0:01:38.3]} 16. Nxe7+ {[%clk 0:02:41.1]} 16... Qxe7 {[%clk 0:01:39.2]}
17. exf3 {[%clk 0:02:41]} 17... cxb4 {[%clk 0:01:28.3]} 18. Ne4 {[%clk
0:02:25.5]} 18... Ra2 {[%clk 0:00:56.5]} 19. Bg5 {[%clk 0:02:21.3]} 19... Qd7
{[%clk 0:00:31.5]} 20. Rxb4 {[%clk 0:02:20.5]} 20... Bh3 {[%clk 0:00:29.5]} 21.
Qb1 {[%clk 0:02:13.1]} 21... Ra7 {[%clk 0:00:12.4]} 22. Nd2 {[%clk 0:02:05.3]}
22... Qf5 {[%clk 0:00:08.6]} 23. Be3 {[%clk 0:01:50]} 23... Ne2+ {[%clk
0:00:04.9]} 24. Kh1 {[%clk 0:01:49.3]} 24... Bxg2+ {[%clk 0:00:03.4]} 25. Kxg2
{[%clk 0:01:50.2]} 1-0

[Event "Early-Titled-Tuesday-Blitz-October-24-2023"]
[Site "Chess.com"]
[Date "2023.10.24"]
[Round "1"]
[White "Ind1anStar"]
[Black "GHANDEEVAM2003"]
[Result "0-1"]
[WhiteElo "2514"]
[BlackElo "3029"]
[TimeControl "180+1"]
[EndTime "8:05:22 PDT"]
[Termination "GHANDEEVAM2003 won by resignation"]

1. d4 {[%clk 0:03:00.9]} 1... g6 {[%clk 0:02:59.8]} 2. e4 {[%clk 0:03:00.8]}
2... Bg7 {[%clk 0:03:00.1]} 3. Nc3 {[%clk 0:03:01.4]} 3... a6 {[%clk 0:02:59.6]}
4. g4 {[%clk 0:02:57.8]} 4... b5 {[%clk 0:02:58.8]} 5. Bg2 {[%clk 0:02:58.2]}
5... Bb7 {[%clk 0:02:59]} 6. Be3 {[%clk 0:02:58.3]} 6... b4 {[%clk 0:02:56.3]}
7. Nce2 {[%clk 0:02:58.5]} 7... Nf6 {[%clk 0:02:55.8]} 8. Ng3 {[%clk 0:02:58.6]}
8... h5 {[%clk 0:02:52.1]} 9. g5 {[%clk 0:02:54.5]} 9... Nh7 {[%clk 0:02:47]}
10. h4 {[%clk 0:02:53]} 10... c5 {[%clk 0:02:45.1]} 11. N1e2 {[%clk 0:02:45.7]}
11... Qc7 {[%clk 0:02:40.2]} 12. c3 {[%clk 0:02:39]} 12... bxc3 {[%clk 0:02:36]}
13. bxc3 {[%clk 0:02:39.2]} 13... Nc6 {[%clk 0:02:33.6]} 14. O-O {[%clk
0:02:37.7]} 14... O-O {[%clk 0:02:32.1]} 15. Rb1 {[%clk 0:02:36]} 15... Rab8
{[%clk 0:02:31.2]} 16. f4 {[%clk 0:02:33.5]} 16... Na5 {[%clk 0:02:28.7]} 17. f5
{[%clk 0:02:09.3]} 17... Bc6 {[%clk 0:02:28.5]} 18. Rxb8 {[%clk 0:02:00.1]}
18... Rxb8 {[%clk 0:02:29.4]} 19. Bf4 {[%clk 0:01:38.6]} 19... d6 {[%clk
0:02:29.2]} 20. dxc5 {[%clk 0:01:37.5]} 20... Qa7 {[%clk 0:02:26.5]} 21. Be3
{[%clk 0:01:23.7]} 21... Nc4 {[%clk 0:02:18.3]} 22. Bf2 {[%clk 0:01:23.9]} 22...
dxc5 {[%clk 0:02:15.7]} 23. Nf4 {[%clk 0:01:21]} 23... Nf8 {[%clk 0:02:13]} 24.
fxg6 {[%clk 0:01:17.1]} 24... fxg6 {[%clk 0:02:13.9]} 25. Bh3 {[%clk 0:00:57.8]}
25... Ne5 {[%clk 0:02:06.1]} 26. Ne6 {[%clk 0:00:46.2]} 26... Qd7 {[%clk
0:02:00.3]} 27. Qxd7 {[%clk 0:00:30.3]} 27... Bxd7 {[%clk 0:02:01.2]} 28. Nxf8
{[%clk 0:00:17.5]} 28... Bxh3 {[%clk 0:02:02.1]} 29. Nxg6 {[%clk 0:00:15.2]}
29... Nxg6 {[%clk 0:02:01.8]} 30. Rd1 {[%clk 0:00:14.4]} 30... Nxh4 {[%clk
0:02:01.2]} 31. Nxh5 {[%clk 0:00:14]} 31... Bg4 {[%clk 0:02:00.3]} 32. Bxh4
{[%clk 0:00:13.3]} 32... Bxd1 {[%clk 0:02:00]} 0-1

[Event "Early-Titled-Tuesday-Blitz-October-24-2023"]
[Site "Chess.com"]
[Date "2023.10.24"]
[Round "1"]
[White "vugarrasulov"]
[Black "angryspacevoid"]
[Result "1-0"]
[WhiteElo "2996"]
[BlackElo "2513"]
[TimeControl "180+1"]
[EndTime "8:05:22 PDT"]
[Termination "vugarrasulov won by resignation"]

1. e3 {[%clk 0:03:00.9]} 1... c5 {[%clk 0:02:55.8]} 2. d4 {[%clk 0:03:01.2]}
2... cxd4 {[%clk 0:02:55.7]} 3. exd4 {[%clk 0:03:02.1]} 3... d5 {[%clk
0:02:54.9]} 4. c4 {[%clk 0:03:02.5]} 4... Nf6 {[%clk 0:02:53.3]} 5. Nc3 {[%clk
0:03:03.4]} 5... e6 {[%clk 0:02:51.5]} 6. Nf3 {[%clk 0:03:03]} 6... Bb4 {[%clk
0:02:49.2]} 7. cxd5 {[%clk 0:03:01.9]} 7... exd5 {[%clk 0:02:33.8]} 8. Bd3
{[%clk 0:03:01.5]} 8... Qe7+ {[%clk 0:02:22.3]} 9. Be3 {[%clk 0:03:01]} 9... Ng4
{[%clk 0:02:21.9]} 10. O-O {[%clk 0:02:54.2]} 10... Nxe3 {[%clk 0:02:21.4]} 11.
fxe3 {[%clk 0:02:55.1]} 11... Bxc3 {[%clk 0:02:14.2]} 12. bxc3 {[%clk 0:02:56]}
12... O-O {[%clk 0:02:13.1]} 13. Kh1 {[%clk 0:02:50.4]} 13... Nc6 {[%clk
0:02:07.4]} 14. Qd2 {[%clk 0:02:50.3]} 14... Bg4 {[%clk 0:02:01.5]} 15. Rae1
{[%clk 0:02:49.4]} 15... f5 {[%clk 0:01:41.2]} 16. Ng1 {[%clk 0:02:42.1]} 16...
g6 {[%clk 0:01:23.3]} 17. c4 {[%clk 0:02:36.1]} 17... dxc4 {[%clk 0:01:13.7]}
18. Bxc4+ {[%clk 0:02:37]} 18... Kh8 {[%clk 0:01:13.7]} 19. Qb2 {[%clk
0:02:37.8]} 19... Qg7 {[%clk 0:01:11.1]} 20. Bd5 {[%clk 0:02:38]} 20... Rac8
{[%clk 0:01:09.7]} 21. h3 {[%clk 0:02:37]} 21... Bh5 {[%clk 0:01:09.1]} 22. Rc1
{[%clk 0:02:35.9]} 22... g5 {[%clk 0:00:59.4]} 23. Bxc6 {[%clk 0:02:31.2]} 23...
bxc6 {[%clk 0:00:58.1]} 24. Rc5 {[%clk 0:02:30.9]} 24... Bg6 {[%clk 0:00:56.4]}
25. Nf3 {[%clk 0:02:30.1]} 25... h6 {[%clk 0:00:51.4]} 26. Ne5 {[%clk
0:02:30.1]} 26... Bf7 {[%clk 0:00:21.4]} 27. Nxc6 {[%clk 0:02:21.4]} 27... f4
{[%clk 0:00:19.2]} 28. exf4 {[%clk 0:02:20.8]} 28... gxf4 {[%clk 0:00:18.2]} 29.
Rxf4 {[%clk 0:02:21.7]} 29... Rxc6 {[%clk 0:00:07.3]} 30. Rxc6 {[%clk 0:02:21]}
30... Bd5 {[%clk 0:00:07.9]} 31. Rxf8+ {[%clk 0:02:19.9]} 31... Qxf8 {[%clk
0:00:08.8]} 32. Rc1 {[%clk 0:02:17.9]} 32... Qf5 {[%clk 0:00:06.4]} 33. Qb8+
{[%clk 0:02:16.7]} 33... Kh7 {[%clk 0:00:03.5]} 34. Qc7+ {[%clk 0:02:16.9]}
34... Kg6 {[%clk 0:00:03.6]} 35. Qg3+ {[%clk 0:02:16.6]} 35... Kh7 {[%clk
0:00:03.3]} 36. Rc7+ {[%clk 0:02:17]} 36... Bf7 {[%clk 0:00:02.7]} 37. Kh2
{[%clk 0:02:17]} 37... h5 {[%clk 0:00:02.2]} 38. h4 {[%clk 0:02:16.8]} 38... Kh6
{[%clk 0:00:02.6]} 39. Qg5+ {[%clk 0:02:16.9]} 39... Qxg5 {[%clk 0:00:03.2]} 40.
hxg5+ {[%clk 0:02:17.8]} 40... Kg6 {[%clk 0:00:04]} 41. Rxa7 {[%clk 0:02:18.2]}
1-0

[Event "Early-Titled-Tuesday-Blitz-October-24-2023"]
[Site "Chess.com"]
[Date "2023.10.24"]
[Round "1"]
[White "M_One1126"]
[Black "twitchTriniCupid"]
[Result "1-0"]
[WhiteElo "2628"]
[BlackElo "2316"]
[TimeControl "180+1"]
[EndTime "8:05:22 PDT"]
[Termination "M_One1126 won by resignation"]

1. e4 {[%clk 0:03:00.9]} 1... c6 {[%clk 0:03:00.3]} 2. d4 {[%clk 0:03:00.9]}
2... d5 {[%clk 0:03:01.2]} 3. Nc3 {[%clk 0:03:01.8]} 3... dxe4 {[%clk
0:03:01.5]} 4. Nxe4 {[%clk 0:03:02.7]} 4... Nf6 {[%clk 0:03:02.4]} 5. Nxf6+
{[%clk 0:03:02.9]} 5... exf6 {[%clk 0:03:03.3]} 6. Bc4 {[%clk 0:03:03.5]} 6...
Bd6 {[%clk 0:03:03.4]} 7. Qe2+ {[%clk 0:03:04.2]} 7... Qe7 {[%clk 0:03:03.1]} 8.
Qxe7+ {[%clk 0:03:04.8]} 8... Bxe7 {[%clk 0:03:02.7]} 9. Ne2 {[%clk 0:03:05.7]}
9... O-O {[%clk 0:03:03]} 10. O-O {[%clk 0:03:05]} 10... Be6 {[%clk 0:02:54.3]}
11. Bd3 {[%clk 0:02:59.9]} 11... Bd6 {[%clk 0:02:28]} 12. Bf4 {[%clk 0:02:59.2]}
12... Rd8 {[%clk 0:02:22.6]} 13. Rfe1 {[%clk 0:02:54.3]} 13... Bb4 {[%clk
0:02:07.6]} 14. c3 {[%clk 0:02:51.8]} 14... Bf8 {[%clk 0:02:05.5]} 15. Bc7
{[%clk 0:02:43]} 15... Rd7 {[%clk 0:01:59.8]} 16. Bg3 {[%clk 0:02:42.6]} 16...
Bd6 {[%clk 0:01:51.5]} 17. Nf4 {[%clk 0:02:33.6]} 17... Bxf4 {[%clk 0:01:49.4]}
18. Bxf4 {[%clk 0:02:34.5]} 18... Rd8 {[%clk 0:01:43.7]} 19. b3 {[%clk
0:02:24.5]} 19... Nd7 {[%clk 0:01:43.6]} 20. Rad1 {[%clk 0:02:20.4]} 20... a5
{[%clk 0:01:33.5]} 21. c4 {[%clk 0:02:12.8]} 21... a4 {[%clk 0:01:27.8]} 22. b4
{[%clk 0:02:11.4]} 22... a3 {[%clk 0:01:17.2]} 23. h3 {[%clk 0:01:58.8]} 23...
Re8 {[%clk 0:00:50.1]} 24. d5 {[%clk 0:01:53.6]} 24... cxd5 {[%clk 0:00:49.8]}
25. cxd5 {[%clk 0:01:54.5]} 25... Bxd5 {[%clk 0:00:45.6]} 26. Rxe8+ {[%clk
0:01:55.4]} 26... Rxe8 {[%clk 0:00:45]} 27. Bb5 {[%clk 0:01:55.6]} 27... Bxa2
{[%clk 0:00:20.3]} 28. Bxd7 {[%clk 0:01:48.7]} 28... Rd8 {[%clk 0:00:15.1]} 29.
Ba4 {[%clk 0:01:48.4]} 29... Rxd1+ {[%clk 0:00:14.4]} 30. Bxd1 {[%clk
0:01:49.3]} 30... Bb3 {[%clk 0:00:14.6]} 31. Bxb3 {[%clk 0:01:48.5]} 1-0

[Event "Early-Titled-Tuesday-Blitz-October-24-2023"]
[Site "Chess.com"]
[Date "2023.10.24"]
[Round "1"]
[White "Jojo_898"]
[Black "NovozhilovSemen"]
[Result "0-1"]
[WhiteElo "2353"]
[BlackElo "2670"]
[TimeControl "180+1"]
[EndTime "8:05:23 PDT"]
[Termination "NovozhilovSemen won by resignation"]

1. e4 {[%clk 0:03:00.9]} 1... c5 {[%clk 0:02:59.6]} 2. Nf3 {[%clk 0:02:59.5]}
2... Nc6 {[%clk 0:02:59.5]} 3. c3 {[%clk 0:02:59.4]} 3... Nf6 {[%clk 0:02:58.3]}
4. Bd3 {[%clk 0:02:59]} 4... e5 {[%clk 0:02:47.5]} 5. O-O {[%clk 0:02:55.6]}
5... g6 {[%clk 0:02:47.9]} 6. Bc2 {[%clk 0:02:54.6]} 6... Bg7 {[%clk 0:02:48.2]}
7. d4 {[%clk 0:02:50.9]} 7... cxd4 {[%clk 0:02:45.9]} 8. cxd4 {[%clk 0:02:50.9]}
8... exd4 {[%clk 0:02:46.1]} 9. Nxd4 {[%clk 0:02:50.5]} 9... O-O {[%clk
0:02:46.3]} 10. Nc3 {[%clk 0:02:32.3]} 10... Nxe4 {[%clk 0:02:37.8]} 11. Bxe4
{[%clk 0:02:17.7]} 11... Nxd4 {[%clk 0:02:37.1]} 12. Be3 {[%clk 0:02:17.5]}
12... Nc6 {[%clk 0:02:35.9]} 13. Bc5 {[%clk 0:02:14.4]} 13... Re8 {[%clk
0:02:34.8]} 14. Re1 {[%clk 0:01:53.1]} 14... b6 {[%clk 0:02:25.2]} 15. Bd6
{[%clk 0:01:49.3]} 15... Bb7 {[%clk 0:02:25]} 16. Nd5 {[%clk 0:01:24.4]} 16...
Rc8 {[%clk 0:02:22.1]} 17. Qd2 {[%clk 0:01:16.3]} 17... Kh8 {[%clk 0:02:12.6]}
18. Qf4 {[%clk 0:00:52.3]} 18... Ne5 {[%clk 0:02:11]} 19. Bxe5 {[%clk
0:00:50.2]} 19... Rxe5 {[%clk 0:02:10.2]} 20. Qxf7 {[%clk 0:00:46.9]} 20... Qe8
{[%clk 0:01:34.3]} 21. Qxe8+ {[%clk 0:00:09.5]} 21... Rcxe8 {[%clk 0:01:35.2]}
22. f3 {[%clk 0:00:08.3]} 22... Bxd5 {[%clk 0:01:32.8]} 0-1